fUSD/lending_fUSD_20260226
["ID","MTS","AMOUNT","RATE_DAILY","PERIOD"]
[406692128,1772086232994,-500.0,9.571e-05,2]
[406692129,1772086233003,-500.0,9.571e-05,2]
[406692130,1772086233012,-500.0,9.571e-05,2]
[406692131,1772086233022,-500.0,9.571e-05,2]
[406692132,1772086233032,-500.0,9.571e-05,2]
[406692133,1772086233041,-500.0,9.571e-05,2]
[406692134,1772086233050,-500.0,9.571e-05,2]
[406692135,1772086233060,-500.0,9.571e-05,2]
[406692136,1772086233069,-500.0,9.571e-05,2]
[406692137,1772086233079,-500.0,9.571e-05,2]
[406692138,1772086233089,-500.0,9.571e-05,2]
[406692139,1772086233098,-500.0,9.571e-05,2]
[406692140,1772086233107,-500.0,9.571e-05,2]
[406692141,1772086233117,-36.77260867,9.571e-05,2]
[406692146,1772086238403,-463.22739133,9.571e-05,2]
[406692147,1772086238413,-500.0,9.571e-05,2]
[406692148,1772086238423,-500.0,9.571e-05,2]
[406692149,1772086238432,-39.97442272,9.571e-05,2]
[406692150,1772086238462,-460.02557728,9.571e-05,2]
[406692151,1772086238472,-368.70442272,9.571e-05,2]
[406692152,1772086238635,-131.29557728,9.571e-05,2]
[406692153,1772086238645,-500.0,9.571e-05,2]
[406692154,1772086238656,-500.0,9.571e-05,2]
[406692155,1772086238668,-500.0,9.571e-05,2]
[406692156,1772086238679,-500.0,9.571e-05,2]
[406692157,1772086238689,-500.0,9.571e-05,2]
[406692159,1772086238701,-500.0,9.571e-05,2]
[406692160,1772086238711,-500.0,9.571e-05,2]
[406692161,1772086238721,-500.0,9.571e-05,2]
[406692162,1772086238731,-500.0,9.571e-05,2]
[406692163,1772086238741,-500.0,9.571e-05,2]
[406692164,1772086238750,-500.0,9.571e-05,2]
[406692165,1772086238759,-500.0,9.571e-05,2]
[406692166,1772086238769,-500.0,9.571e-05,2]
[406692167,1772086238779,-541.04798604,9.571e-05,2]
[406692168,1772086238788,-500.0,9.571e-05,2]
[406692169,1772086238798,-500.0,9.571e-05,2]
[406692170,1772086238807,-500.0,9.571e-05,2]
[406692171,1772086238817,-500.0,9.571e-05,2]
[406692172,1772086238827,-500.0,9.571e-05,2]
[406692173,1772086238836,-500.0,9.571e-05,2]
[406692174,1772086238848,-519.42857143,9.571e-05,2]
[406692175,1772086238858,-519.42857143,9.571e-05,2]
[406692176,1772086238867,-519.42857143,9.571e-05,2]
[406692177,1772086238876,-519.42857143,9.571e-05,2]
[406692178,1772086238886,-519.42857143,9.571e-05,2]
[406692179,1772086238895,-500.0,9.571e-05,2]
[406692180,1772086238905,-519.42857143,9.571e-05,2]
[406692181,1772086238914,-317.01579516,9.571e-05,2]
[406692182,1772086238923,-519.42857143,9.571e-05,2]
[406692183,1772086238933,-519.42857143,9.571e-05,2]
[406692184,1772086238942,-519.42857143,9.571e-05,2]
[406692185,1772086238952,-519.42857143,9.571e-05,2]
[406692186,1772086238962,-500.0,9.571e-05,2]
[406692187,1772086238971,-519.42857143,9.571e-05,2]
[406692188,1772086238981,-519.42857143,9.571e-05,2]
[406692189,1772086238991,-519.42857143,9.571e-05,2]
[406692190,1772086239000,-519.42857143,9.571e-05,2]
[406692191,1772086239010,-519.42857143,9.571e-05,2]
[406692192,1772086239020,-519.42857143,9.571e-05,2]
[406692193,1772086239030,-519.42857143,9.571e-05,2]
[406692194,1772086239039,-500.0,9.571e-05,2]
[406692195,1772086239049,-519.42857143,9.571e-05,2]
[406692196,1772086239058,-519.42857143,9.571e-05,2]
[406692197,1772086239068,-519.42857143,9.571e-05,2]
[406692198,1772086239077,-519.42857143,9.571e-05,2]
[406692199,1772086239086,-519.42857143,9.571e-05,2]
[406692200,1772086239096,-519.42857143,9.571e-05,2]
[406692201,1772086239106,-519.42857143,9.571e-05,2]
[406692202,1772086239115,-519.42857143,9.571e-05,2]
[406692203,1772086239125,-519.42857143,9.571e-05,2]
[406692204,1772086239134,-519.42857143,9.571e-05,2]
[406692205,1772086239144,-592.08465608,9.571e-05,2]
[406692206,1772086239153,-592.08465608,9.571e-05,2]
[406692207,1772086239163,-592.08465608,9.571e-05,2]
[406692208,1772086239173,-592.08465608,9.571e-05,2]
[406692209,1772086239182,-592.08465608,9.571e-05,2]
[406692210,1772086239192,-592.08465608,9.571e-05,2]
[406692211,1772086239202,-592.08465608,9.571e-05,2]
[406692212,1772086239212,-592.08465608,9.571e-05,2]
[406692213,1772086239222,-592.08465608,9.571e-05,2]
[406692214,1772086239231,-150.99,9.571e-05,2]
[406692215,1772086239241,-999.99,9.571e-05,2]
[406692216,1772086239250,-9999.99,9.573e-05,2]
[406692217,1772086239259,-1235.2464,9.573e-05,2]
[406692218,1772086239269,-68894.4394,9.573e-05,2]
[406692219,1772086239280,-4520.3,9.644e-05,2]
[406692220,1772086239289,-329.1385,9.673e-05,2]
[406692221,1772086239298,-150.8,9.68e-05,2]
[406692222,1772086239307,-166.66,9.734e-05,2]
[406692223,1772086239319,-253.0,9.888e-05,2]
[406692224,1772086239328,-500.0,0.0001,2]
[406692225,1772086239337,-500.0,0.0001,2]
[406692226,1772086239347,-500.0,0.0001,2]
[406692227,1772086239357,-151.0,0.0001,2]
[406692228,1772086239366,-151.0,0.0001,2]
[406692229,1772086239375,-151.0,0.0001,2]
[406692230,1772086239385,-151.0,0.0001,2]
[406692231,1772086239400,-151.0,0.0001,2]
[406692232,1772086239414,-172.22478143,0.0001,2]
[406692233,1772086239424,-150.8,0.00010008,2]
[406692234,1772086239434,-166.66,0.00010018,2]
[406692235,1772086239444,-150.8,0.00010336,2]
[406692236,1772086239453,-150.8,0.00010663,2]
[406692237,1772086239464,-1000.0,0.00010793,2]
[406692238,1772086239474,-32883.6844,0.00010793,2]
[406692239,1772086239484,-152.0,0.00010935,3]
[406692240,1772086239493,-150.8,0.00010991,2]
[406692241,1772086239504,-167.88,0.00011047,2]
[406692242,1772086239513,-1240.45815226,0.00011099,2]
[406692243,1772086239524,-1240.45815223,0.00011099,2]
[406692245,1772086239534,-3847.89761673,0.00011099,2]
[406692246,1772086239544,-3847.89761673,0.00011099,2]
[406692248,1772086239554,-150.89,0.00011174,2]
[406692249,1772086239564,-150.8,0.00011318,2]
[406692250,1772086239575,-3847.89761673,0.00011346,2]
[406692251,1772086239586,-1240.45815223,0.00011346,2]
[406692252,1772086239596,-152.0,0.0001152,4]
[406692253,1772086239609,-150.8,0.00011646,2]
[406692254,1772086239619,-166.66,0.0001178,2]
[406692255,1772086239629,-167.88,0.00011836,2]
[406692256,1772086239638,-166.66,0.00012028,2]
[406692257,1772086239649,-152.0,0.00012105,5]
[406692258,1772086239659,-166.66,0.00012276,2]
[406692259,1772086239669,-3847.89761673,0.00012282,2]
[406692260,1772086239679,-1240.45815223,0.00012282,2]
[406692261,1772086239689,-166.66,0.00012524,2]
[406692262,1772086239838,-5771.18,0.00012599,2]
[406692263,1772086239875,-167.88,0.00012625,2]
[406692264,1772086239886,-152.0,0.0001269,6]
[406692265,1772086239895,-166.66,0.00012772,2]
[406692266,1772086239905,-5628.56477834,0.00013,2]
[406692267,1772086239919,-166.66,0.0001302,2]
[406692268,1772086239929,-3847.89761673,0.00013218,2]
[406692269,1772086239939,-1240.45815223,0.00013218,2]
[406692270,1772086239948,-173.95657067,0.00013246,2]
[406692271,1772086239959,-160.0,0.00013246,2]
[406692272,1772086239968,-152.0,0.00013275,7]
[406692273,1772086239978,-167.88,0.00013414,2]
[406692274,1772086239990,-2359.45,0.00013472,2]
[406692275,1772086240001,-2698.85736045,0.0001358,2]
[406692276,1772086240011,-1092.7733166,0.00013598,2]
[406692277,1772086240020,-500.0,0.00013698,2]
[406692278,1772086240030,-405.62075362,0.00013698,2]
[406692279,1772086240039,-500.0,0.00013698,2]
[406692280,1772086240049,-500.0,0.00013698,2]
[406692281,1772086240058,-500.0,0.00013698,2]
[406692282,1772086240068,-500.0,0.00013698,2]
[406692283,1772086240077,-500.0,0.00013698,2]
[406692284,1772086240087,-500.0,0.00013698,2]
[406692285,1772086240096,-500.0,0.00013698,2]
[406692286,1772086240106,-500.0,0.00013698,2]
[406692287,1772086240116,-500.0,0.00013698,2]
[406692288,1772086240125,-500.0,0.00013698,2]
[406692289,1772086240134,-500.0,0.00013698,2]
[406692290,1772086240144,-500.0,0.00013698,2]
[406692291,1772086240153,-585.34193517,0.00013698,2]
[406692292,1772086240163,-500.0,0.00013698,2]
[406692293,1772086240172,-500.0,0.00013698,2]
[406692294,1772086240182,-500.0,0.00013698,2]
[406692295,1772086240191,-500.0,0.00013698,2]
[406692296,1772086240200,-500.0,0.00013698,2]
[406692297,1772086240210,-500.0,0.00013698,2]
[406692298,1772086240219,-500.0,0.00013698,2]
[406692299,1772086240228,-500.0,0.00013698,2]
[406692300,1772086240238,-500.0,0.00013698,2]
[406692301,1772086240248,-500.0,0.00013698,2]
[406692302,1772086240257,-500.0,0.00013698,2]
[406692303,1772086240266,-500.0,0.00013698,2]
[406692304,1772086240275,-368.2260392,0.00013698,2]
[406692305,1772086240284,-500.0,0.00013698,2]
[406692306,1772086240294,-500.0,0.00013698,2]
[406692307,1772086240304,-500.0,0.00013698,2]
[406692308,1772086240313,-500.0,0.00013698,2]
[406692309,1772086240323,-409.20397161,0.00013698,2]
[406692310,1772086240332,-500.0,0.00013698,2]
[406692311,1772086240342,-500.0,0.00013698,2]
[406692312,1772086240352,-500.0,0.00013698,2]
[406692313,1772086240362,-500.0,0.00013698,2]
[406692314,1772086240372,-500.0,0.00013698,2]
[406692315,1772086240382,-500.0,0.00013698,2]
[406692316,1772086240391,-500.0,0.00013698,2]
[406692317,1772086240401,-500.0,0.00013698,2]
[406692318,1772086240411,-500.0,0.00013698,2]
[406692319,1772086240420,-500.0,0.00013698,2]
[406692320,1772086240430,-500.0,0.00013698,2]
[406692321,1772086240440,-500.0,0.00013698,2]
[406692322,1772086240449,-500.0,0.00013698,2]
[406692323,1772086240463,-500.0,0.00013698,2]
[406692324,1772086240472,-500.0,0.00013698,2]
[406692325,1772086240482,-500.0,0.00013698,2]
[406692326,1772086240493,-500.0,0.00013698,2]
[406692327,1772086240503,-500.0,0.00013698,2]
[406692328,1772086240517,-500.0,0.00013698,2]
[406692329,1772086240527,-500.0,0.00013698,2]
[406692330,1772086240537,-500.0,0.00013698,2]
[406692331,1772086240547,-500.0,0.00013698,2]
[406692332,1772086240557,-500.0,0.00013698,2]
[406692333,1772086240567,-500.0,0.00013698,2]
[406692334,1772086240577,-500.0,0.00013698,2]
[406692335,1772086240586,-500.0,0.00013698,2]
[406692336,1772086240597,-500.0,0.00013698,2]
[406692337,1772086240609,-268.69007129,0.00013698,2]
[406692338,1772086240619,-500.0,0.00013698,2]
[406692339,1772086240628,-500.0,0.00013698,2]
[406692340,1772086240639,-500.0,0.00013698,2]
[406692341,1772086240650,-269.57915282,0.00013698,2]
[406692342,1772086240660,-500.0,0.00013698,2]
[406692343,1772086240670,-500.0,0.00013698,2]
[406692344,1772086240680,-467.36158262,0.00013698,2]
[406692345,1772086240690,-500.0,0.00013698,2]
[406692346,1772086240700,-500.0,0.00013698,2]
[406692347,1772086240711,-568.60354988,0.00013698,2]
[406692348,1772086240720,-271.25,0.00013699,2]
[406692349,1772086240730,-226.04,0.00013699,2]
[406692350,1772086240740,-188.37,0.00013699,2]
[406692351,1772086240749,-156.97,0.00013699,2]
[406692352,1772086240759,-784.9,0.00013699,2]
[406692353,1772086240768,-500.0,0.00013723,2]
[406692354,1772086240778,-152.0,0.0001386,8]
[406692355,1772086240788,-3847.89761673,0.00014155,2]
[406692356,1772086240799,-1240.45815223,0.00014155,2]
[406692357,1772086240809,-167.88,0.00014203,2]
[406692358,1772086240819,-2288.77901783,0.0001421,7]
[406692359,1772086240828,-1092.77331653,0.00014213,2]
[406692360,1772086240838,-500.0,0.00014246,2]
[406692361,1772086240849,-772.91,0.00014293,2]
[406692362,1772086240858,-224.40086961,0.000144,2]
[406692363,1772086240872,-1500.75,0.00014421,2]
[406692364,1772086240882,-152.0,0.00014445,9]
[406692365,1772086240892,-500.0,0.00014452,2]
[406692366,1772086240902,-500.0,0.00014794,2]
[406692367,1772086240911,-500.0,0.00014794,2]
[406692368,1772086240921,-1211.0,0.00014951,2]
[406692369,1772086240931,-920.0,0.00014951,2]
[406692370,1772086240941,-5983.0,0.00014951,2]
[406692371,1772086240950,-2456.0,0.00014951,2]
[406692372,1772086240960,-167.88,0.00014992,2]
[406692373,1772086240970,-152.0,0.0001503,10]
[406692374,1772086240979,-150.0,0.00015064,2]
[406692375,1772086240989,-150.0,0.00015064,2]
[406692376,1772086241000,-150.05,0.00015064,2]
[406692377,1772086241009,-150.0,0.00015064,2]
[406692378,1772086241018,-150.0,0.00015064,2]
[406692379,1772086241029,-150.0,0.00015064,2]
[406692380,1772086241039,-150.068,0.00015064,2]
[406692381,1772086241049,-150.0,0.00015064,2]
[406692382,1772086241059,-618.0,0.00015064,2]
[406692384,1772086241068,-3498.0,0.00015064,2]
[406692385,1772086241078,-1041.0,0.00015064,2]
[406692386,1772086241087,-1340.0,0.00015064,2]
[406692387,1772086241097,-1277.0,0.00015064,2]
[406692388,1772086241107,-3847.89761673,0.00015091,2]
[406692389,1772086241116,-1240.45815223,0.00015091,2]
[406692390,1772086241126,-10039.86886893,0.0001512,2]
[406692391,1772086241135,-500.0,0.00015176,2]
[406692392,1772086241145,-500.0,0.00015176,2]
[406692394,1772086241154,-500.0,0.00015176,2]
[406692396,1772086241164,-500.0,0.00015176,2]
[406692398,1772086241174,-500.0,0.00015176,2]
[406692399,1772086241184,-500.0,0.00015176,2]
[406692400,1772086241193,-500.0,0.00015176,2]
[406692401,1772086241203,-500.0,0.00015176,2]
[406692402,1772086241212,-500.0,0.00015176,2]
[406692403,1772086241222,-500.0,0.00015176,2]
[406692404,1772086241232,-500.0,0.00015176,2]
[406692405,1772086241245,-246.13271968,0.00015176,2]
[406692406,1772086241255,-1000.0,0.00015507,2]
[406692407,1772086241264,-152.0,0.00015615,11]
[406692408,1772086241274,-167.88,0.00015781,2]
[406692409,1772086241284,-5524.0,0.00015822,2]
[406692410,1772086241294,-1000.0,0.00015895,2]
[406692411,1772086241303,-3847.89761673,0.00016027,2]
[406692412,1772086241313,-1240.45815223,0.00016027,2]
[406692414,1772086241322,-75774.32714959,0.00016071,7]
[406692415,1772086241333,-3268.17434555,0.00016071,7]
[406692416,1772086241343,-125570.80605133,0.00016071,7]
[406692417,1772086241352,-150.0,0.00016177,2]
[406692418,1772086241361,-152.0,0.000162,12]
[406692419,1772086241371,-152.0,0.000162,5]
[406692420,1772086241380,-1591.1940946,0.000162,5]
[406692421,1772086241389,-1000.0,0.00016282,2]
[406692422,1772086241399,-700.0,0.00016356,2]
[406692423,1772086241408,-500.0,0.00016356,2]
[406692424,1772086241418,-500.0,0.00016356,2]
[406692425,1772086241427,-500.0,0.00016422,2]
[406692426,1772086241437,-388.5,0.00016438,2]
[406692427,1772086241447,-167.88,0.0001657,2]
[406692428,1772086241457,-1000.0,0.0001667,2]
[406692429,1772086241467,-990.0,0.000167,2]
[406692430,1772086241476,-388.5,0.00016712,2]
[406692431,1772086241486,-200.0,0.00016792,2]
[406692432,1772086241495,-1228.0,0.00016881,2]
[406692433,1772086241505,-1584.0,0.00016881,2]
[406692434,1772086241515,-3240.0,0.00016887,2]
[406692435,1772086241524,-3847.89761673,0.00016964,2]
[406692436,1772086241534,-1240.45815223,0.00016964,2]
[406692437,1772086241544,-150.0,0.00016973,2]
[406692438,1772086241553,-150.0,0.00016973,2]
[406692439,1772086241563,-388.5,0.00016986,2]
[406692440,1772086241573,-41279.875049,0.00017,2]
[406692441,1772086242078,-413.0,0.00014951,2]
[406692442,1772086242089,-332677.30090676,0.00017,2]
[406692443,1772086242099,-173.95657067,0.00017,7]
[406692444,1772086242108,-3643.09,0.00017014,2]
[406692445,1772086242117,-150.0,0.00017028,2]
[406692446,1772086242127,-1000.0,0.00017058,2]
[406692447,1772086242136,-208.88429413,0.00017083,2]
[406692448,1772086242146,-18386.068904,0.000171,2]
[406692449,1772086242156,-350.0,0.0001715,3]
[406692450,1772086242165,-150.89,0.00017179,2]
[406692451,1772086242175,-388.5,0.0001726,2]
[406692452,1772086242184,-350.0,0.00017271,2]
[406692453,1772086242193,-1000.0,0.00017353,2]
[406692454,1772086242203,-388.5,0.00017534,2]
[406692455,1772086242212,-350.0,0.00017572,2]
[406692456,1772086242222,-300.0,0.00017592,5]
[406692457,1772086242231,-295.0,0.00017609,2]
[406692458,1772086242240,-223.9163473,0.0001762,2]
[406692459,1772086242250,-295.0,0.00017625,2]
[406692460,1772086242259,-295.0,0.00017637,2]
[406692461,1772086242269,-871.05624905,0.0001764,2]
[406692462,1772086242278,-295.0,0.00017661,2]
[406692463,1772086242287,-295.0,0.00017696,2]
[406692464,1772086242298,-150.0,0.00017698,2]
[406692465,1772086242307,-162.43895648,0.00017698,2]
[406692466,1772086242316,-150.0,0.00017698,2]
[406692467,1772086242326,-150.0,0.00017698,2]
[406692468,1772086242335,-150.0,0.00017698,2]
[406692469,1772086242344,-150.0,0.00017698,2]
[406692470,1772086242354,-150.0,0.00017698,2]
[406692471,1772086242363,-150.0,0.00017698,2]
[406692472,1772086242373,-785.31942984,0.000177,2]
[406692473,1772086242383,-700.0,0.00017726,7]
[406692474,1772086242392,-500.0,0.00017726,7]
[406692475,1772086242401,-500.0,0.00017726,7]
[406692476,1772086242411,-150.0,0.00017753,2]
[406692477,1772086242420,-200.0,0.00017753,2]
[406692478,1772086242430,-150.0,0.00017753,2]
[406692479,1772086242439,-200.0,0.00017753,2]
[406692480,1772086242448,-295.0,0.0001777,2]
[406692481,1772086242460,-500.0,0.00017807,2]
[406692482,1772086242469,-388.5,0.00017808,2]
[406692483,1772086242479,-500.0,0.00017808,2]
[406692484,1772086242488,-500.0,0.00017808,2]
[406692485,1772086242497,-500.0,0.00017808,2]
[406692486,1772086242507,-500.0,0.00017808,2]
[406692487,1772086242516,-500.0,0.00017808,2]
[406692488,1772086242527,-500.0,0.00017808,2]
[406692489,1772086242537,-500.0,0.00017808,2]
[406692490,1772086242548,-500.0,0.00017808,2]
[406692491,1772086242557,-500.0,0.00017808,2]
[406692492,1772086242567,-500.0,0.00017808,2]
[406692493,1772086242576,-500.0,0.00017808,2]
[406692494,1772086242586,-500.0,0.00017808,2]
[406692495,1772086242595,-500.0,0.00017808,2]
[406692496,1772086242607,-500.0,0.00017808,2]
[406692497,1772086242618,-500.0,0.00017808,2]
[406692498,1772086242628,-500.0,0.00017808,2]
[406692499,1772086242637,-500.0,0.00017808,2]
[406692500,1772086242648,-500.0,0.00017808,2]
[406692501,1772086242657,-500.0,0.00017808,2]
[406692502,1772086242666,-500.0,0.00017808,2]
[406692503,1772086242677,-500.0,0.00017808,2]
[406692504,1772086242687,-500.0,0.00017808,2]
[406692505,1772086242696,-500.0,0.00017808,2]
[406692506,1772086242706,-210.66968814,0.00017808,2]
[406692507,1772086242716,-500.0,0.00017808,2]
[406692508,1772086242725,-450.0,0.00017808,2]
[406692509,1772086242735,-800.0,0.00017808,2]
[406692510,1772086242744,-500.0,0.00017819,2]
[406692511,1772086242754,-1035.95215,0.0001782,2]
[406692512,1772086242763,-1035.95216,0.0001782,2]
[406692513,1772086242774,-350.0,0.0001784,2]
[406692514,1772086242783,-295.0,0.00017884,2]
[406692515,1772086242796,-295.0,0.00017884,2]
[406692516,1772086242807,-761.17059446,0.0001789,2]
[406692517,1772086242816,-1226.81574695,0.0001789,2]
[406692518,1772086242826,-350.0,0.00017893,3]
[406692519,1772086242835,-500.0,0.00017899,2]
[406692520,1772086242845,-500.0,0.00017899,2]
[406692521,1772086242854,-500.0,0.000179,2]
[406692522,1772086242865,-500.0,0.000179,2]
[406692523,1772086242875,-10000.0,0.000179,2]
[406692524,1772086242884,-3847.89761673,0.000179,2]
[406692525,1772086242894,-1240.45815223,0.000179,2]
[406692526,1772086242904,-38880.57547458,0.000179,2]
[406692527,1772086242913,-1485.01045939,0.000179,2]
[406692528,1772086242923,-187.72990852,0.000179,2]
[406692529,1772086242933,-295.0,0.00017924,2]
[406692530,1772086242943,-1211.0,0.00017951,2]
[406692531,1772086242951,-920.0,0.00017951,2]
[406692532,1772086242961,-5983.0,0.00017951,2]
[406692533,1772086242972,-2456.0,0.00017951,2]
[406692534,1772086242981,-413.0,0.00017951,2]
[406692535,1772086242992,-169.97124684,0.0001797,2]
[406692536,1772086243002,-174.26065421,0.00017973,2]
[406692537,1772086243011,-43964.18602492,0.0001798,2]
[406692538,1772086243021,-500.0,0.00017988,2]
[406692539,1772086243031,-500.0,0.00017988,2]
[406692540,1772086243042,-500.0,0.00017988,2]
[406692541,1772086243051,-169.97124684,0.0001799,2]
[406692542,1772086243060,-169.97124684,0.0001799,2]
[406692543,1772086243073,-48944.9684795,0.00017995,2]
[406692544,1772086243083,-238024.8807589,0.00017995,2]
[406692545,1772086243093,-17216.6516561,0.00017995,2]
[406692546,1772086243103,-62061.527245,0.00017995,2]
[406692547,1772086243113,-2362.962409,0.00017995,2]
[406692548,1772086243124,-500.0,0.00017999,2]
[406692549,1772086243134,-500.0,0.00017999,2]
[406692550,1772086243144,-399.87,0.00017999,2]
[406692551,1772086243153,-13140.49262267,0.00017999,2]
[406692552,1772086243163,-283.02863357,0.00017999,2]
[406692553,1772086243172,-924923.49245041,0.00018,2]
[406692554,1772086243193,-665.0,0.00018,2]
[406692555,1772086243213,-1976.87073602,0.00018,2]
[406692557,1772086243230,-1092.77331653,0.00014827,2]
[406692558,1772086243241,-131650.92958299,0.00018,2]
[406692563,1772086243488,-1127.0,0.00017871,2]
[406692564,1772086243499,-1518.0,0.00017871,2]
[406692565,1772086243509,-117417.83091846,0.00018,2]
[406692566,1772086243545,-3244.72416054,0.00018,2]
[406692591,1772086246281,-1092.77331653,0.00015442,2]
[406692592,1772086246291,-4010.00169662,0.00018,2]
[406692593,1772086246302,-13300.6388585,0.00018,2]
[406692594,1772086246314,-910.07126,0.00018,2]
[406692595,1772086246326,-31434.94149265,0.00018,2]
[406692596,1772086246503,-1546.28152729,0.00018,2]
[406692597,1772086246515,-6948.45518872,0.00018,2]
[406692598,1772086246623,-2223.74664,0.00018,2]
[406692656,1772087391866,500.0,0.0001789,120]
[406692660,1772087431382,-1246.48,9.776e-05,2]
[406692661,1772087431395,-353.52,9.776e-05,2]
[406692662,1772087431404,-146.48,9.805e-05,2]
[406692663,1772087431416,-895.86861586,9.805e-05,2]
[406692664,1772087431464,-993.486,9.805e-05,2]
[406692665,1772087431476,-616.38608097,9.805e-05,2]
[406692666,1772087431488,-225.19930317,9.805e-05,2]
[406692667,1772087431497,-71.17069283,9.902e-05,2]
[406692668,1772087431536,-2428.82930717,9.902e-05,2]
[406692669,1772087431546,-153.20566341,0.0001,2]
[406692670,1772087431556,-2500.0,0.00010022,2]
[406692671,1772087431565,-300.0,0.00010061,2]
[406692672,1772087431575,-1200.0,0.00010061,2]
[406692673,1772087431584,-300.0,0.00010061,2]
[406692674,1772087431593,-677.88128222,0.00010062,2]
[406692675,1772087431603,-349.15331683,0.000101,2]
[406692676,1772087431619,-150.84668317,0.000101,2]
[406692677,1772087431628,-5361.66342473,0.00010109,2]
[406692678,1772087431643,-6713.13657527,0.00010109,2]
[406692679,1772087431652,-150.0,0.00010299,2]
[406692680,1772087431662,-500.0,0.000103,2]
[406692681,1772087431671,-411.86524311,0.000103,2]
[406692682,1772087431683,-89.12401568,0.000103,2]
[406692683,1772087431693,-997.95349587,0.000103,2]
[406692684,1772087431701,-500.0,0.000103,2]
[406692685,1772087431711,-500.0,0.000103,2]
[406692686,1772087431720,-500.0,0.000103,2]
[406692687,1772087431729,-500.0,0.000103,2]
[406692688,1772087431739,-500.0,0.000103,2]
[406692689,1772087431750,-500.0,0.000103,2]
[406692690,1772087431759,-500.0,0.000103,2]
[406692691,1772087431768,-500.0,0.000103,2]
[406692692,1772087431778,-500.0,0.000103,2]
[406692693,1772087431788,-500.0,0.000103,2]
[406692694,1772087431798,-500.0,0.000103,2]
[406692695,1772087431808,-500.0,0.000103,2]
[406692696,1772087431818,-500.0,0.000103,2]
[406692697,1772087431828,-500.0,0.000103,2]
[406692698,1772087431837,-500.0,0.000103,2]
[406692699,1772087431847,-739.84545781,0.000103,2]
[406692700,1772087431856,-518.88437853,0.000103,2]
[406692702,1772087431865,-153.20566341,0.00010314,2]
[406692704,1772087431875,-23663.18272406,0.00010415,2]
[406692711,1772087437663,-4478.00151961,0.00010415,2]
[406692712,1772087437727,-993.89608222,0.00010415,2]
[406692713,1772087437739,-61253.82881212,0.00010415,2]
[406692714,1772087437749,-153.20566341,0.00010627,2]
[406692715,1772087437759,-2500.0,0.00010628,2]
[406692716,1772087437769,-193.0,0.00010653,2]
[406692717,1772087437778,-269.42049975,0.00010658,2]
[406692718,1772087437787,-8804.27515145,0.00010717,2]
[406692719,1772087437797,-254.95687026,0.00010718,2]
[406692720,1772087437806,-500.0,0.00010727,2]
[406692721,1772087437815,-1078.40932586,0.00010727,2]
[406692722,1772087437825,-1078.40932586,0.00010727,2]
[406692723,1772087437835,-1078.40932586,0.00010727,2]
[406692724,1772087437845,-1078.40932586,0.00010727,2]
[406692725,1772087437855,-1078.40932586,0.00010727,2]
[406692727,1772087437865,-1078.40932586,0.00010727,2]
[406692729,1772087437875,-1078.40932586,0.00010727,2]
[406692731,1772087437885,-1078.40932586,0.00010727,2]
[406692733,1772087437895,-1078.40932586,0.00010727,2]
[406692734,1772087437904,-1078.40932586,0.00010727,2]
[406692736,1772087437914,-1078.40932586,0.00010727,2]
[406692737,1772087437923,-1078.40932586,0.00010727,2]
[406692738,1772087437932,-1078.40932586,0.00010727,2]
[406692739,1772087437942,-1078.40932586,0.00010727,2]
[406692740,1772087437952,-1078.40932586,0.00010727,2]
[406692741,1772087437965,-1078.40932586,0.00010727,2]